bitfinex/quotes_BTCUSD_20240721
["timestamp","ask_amount","ask_price","bid_price","bid_amount"]
[1721599216193,0.0798,68275.0,68273.0,1.28631291]
[1721599216194,0.0798,68275.0,68274.0,1.025279]
[1721599216396,0.0625,68279.0,68278.0,0.43938]
[1721599216627,0.0625,68279.0,68278.0,0.8323]
[1721599217033,0.0625,68279.0,68278.0,0.95390042]
[1721599217239,0.0625,68279.0,68278.0,1.39384033]
[1721599217447,0.0807,68281.0,68280.0,0.732277]
[1721599217650,0.0626,68285.0,68284.0,0.732235]
[1721599217862,0.0626,68285.0,68284.0,1.10085533]
[1721599218041,0.0626,68285.0,68284.0,1.39374933]
[1721599218245,0.0626,68294.0,68293.0,0.439282]
[1721599218401,0.00838,68296.0,68295.0,0.78202575]
[1721599218607,0.00838,68296.0,68295.0,0.92913691]
[1721599218866,0.00838,68296.0,68295.0,1.44345264]
[1721599219070,0.00838,68296.0,68295.0,1.39354389]
[1721599219519,0.00838,68296.0,68295.0,1.44345264]
[1721599219912,0.14488,68296.0,68295.0,0.66082998]
[1721599220309,0.14497125,68296.0,68295.0,0.22155998]
[1721599220520,0.14497125,68296.0,68295.0,0.114]
[1721599220841,0.14497125,68296.0,68295.0,0.014]
[1721599221262,0.14497125,68296.0,68279.0,0.002794]
[1721599221263,9.125e-05,68280.0,68279.0,0.002794]
[1721599221485,9.125e-05,68280.0,68279.0,0.12160174]
[1721599221693,9.125e-05,68274.0,68271.0,0.146474]
[1721599221870,9.125e-05,68270.0,68261.0,0.05041511]
[1721599222077,0.292889,68286.0,68261.0,0.05041511]
[1721599222078,9.125e-05,68267.0,68262.0,0.12161875]
[1721599222282,9.125e-05,68263.0,68262.0,0.61]
[1721599222488,0.14079125,68263.0,68262.0,0.12163326]
[1721599222927,0.14079125,68263.0,68262.0,0.56111526]
[1721599223437,0.14079125,68263.0,68262.0,0.85410326]
[1721599223438,0.1407,68263.0,68262.0,0.85410326]
[1721599223635,9.125e-05,68278.0,68277.0,0.146462]
[1721599223842,9.125e-05,68289.0,68288.0,0.146438]
[1721599224092,0.0666,68293.0,68292.0,0.43929]
[1721599224295,0.00838,68296.0,68295.0,0.43927]
[1721599224490,0.00838,68296.0,68295.0,1.124964]
[1721599224718,0.00838,68296.0,68295.0,1.24654107]
[1721599225651,0.00847125,68296.0,68295.0,0.22157707]
[1721599225852,0.00847125,68296.0,68282.0,0.14645]
[1721599225853,9.125e-05,68286.0,68282.0,0.14645]
[1721599226062,9.125e-05,68286.0,68266.0,0.4883695]
[1721599226063,9.125e-05,68282.0,68281.0,0.002794]
[1721599226260,0.1454,68285.0,68276.0,0.146463]
[1721599226261,9.125e-05,68277.0,68276.0,0.146463]
[1721599226459,9.125e-05,68277.0,68276.0,0.439391]
[1721599226664,9.125e-05,68277.0,68276.0,0.146463]
[1721599227290,0.14049125,68285.0,68269.0,0.292956]
[1721599227520,0.14049125,68285.0,68273.0,0.07348942]
[1721599227725,0.14049125,68285.0,68279.0,0.146456]
[1721599227932,0.14049125,68285.0,68278.0,0.292919]
[1721599227933,0.14049125,68285.0,68284.0,0.732235]
[1721599228287,0.00838,68296.0,68284.0,0.22159214]
[1721599228288,0.0813,68295.0,68284.0,0.22159214]
[1721599228487,0.0813,68295.0,68294.0,0.146425]
[1721599228779,0.0813,68295.0,68294.0,0.539276]
[1721599228891,0.0813,68295.0,68294.0,0.832127]
[1721599229549,0.00838,68296.0,68295.0,0.732117]
[1721599229763,0.00838,68296.0,68295.0,1.46705025]
[1721599229979,0.00838,68296.0,68295.0,1.34547333]
[1721599230200,0.00838,68296.0,68295.0,1.46703175]
[1721599230464,0.00838,68296.0,68295.0,1.34547333]
[1721599230694,0.00838,68296.0,68295.0,1.46703213]
[1721599230930,0.00938,68296.0,68295.0,1.47903213]
[1721599231204,0.00438,68296.0,68295.0,1.47903213]
[1721599232181,0.00438,68296.0,68295.0,1.57903213]
[1721599232419,0.00338,68296.0,68295.0,1.39354271]
[1721599232677,0.00338,68296.0,68295.0,1.40754271]
[1721599233183,0.00338,68296.0,68295.0,1.39355197]
[1721599233421,0.00338,68296.0,68295.0,1.40755197]
[1721599234177,0.00338,68296.0,68295.0,1.39355197]
[1721599235359,0.00338,68296.0,68295.0,1.40755197]
[1721599235826,0.00338,68296.0,68295.0,1.39355197]
[1721599236078,0.00338,68296.0,68295.0,1.27198391]
[1721599236317,0.00338,68296.0,68295.0,1.40755159]
[1721599236835,0.00338,68296.0,68295.0,0.95368468]
[1721599237088,0.08258,68296.0,68295.0,0.114]
[1721599237328,0.14708,68296.0,68295.0,0.014]
[1721599238297,0.14708,68296.0,68273.0,0.41779509]
[1721599238298,0.29409991,68296.0,68278.0,0.351568]
[1721599238538,0.1402,68292.0,68274.0,0.292935]
[1721599238806,0.58683056,68295.0,68278.0,0.146459]
[1721599238807,0.0752,68290.0,68278.0,0.146459]
[1721599239311,0.0752,68290.0,68279.0,0.146456]
[1721599240054,0.0752,68290.0,68280.0,0.1]
[1721599240309,0.0752,68290.0,68279.0,0.146457]
[1721599240578,0.0752,68290.0,68280.0,0.1]
[1721599241017,0.0752,68290.0,68280.0,0.246453]
[1721599241223,0.0752,68290.0,68281.0,0.146452]
[1721599241418,0.0812,68290.0,68282.0,0.1]
[1721599242100,0.0752,68290.0,68282.0,0.1]
[1721599242347,0.0822,68290.0,68282.0,0.246451]
[1721599242693,0.0822,68290.0,68283.0,0.146447]
[1721599242901,0.0752,68290.0,68284.0,0.102794]
[1721599243120,0.0802,68290.0,68284.0,0.1]
[1721599243274,0.0802,68290.0,68281.0,0.146453]
[1721599243484,0.0802,68290.0,68282.0,0.1]
[1721599244773,0.0752,68290.0,68283.0,0.146449]
[1721599245024,0.0282,68290.0,68284.0,0.002794]
[1721599245447,0.0252,68290.0,68283.0,0.249243]
[1721599245619,0.0282,68290.0,68283.0,0.249243]
[1721599245833,0.0282,68290.0,68283.0,0.246449]
[1721599246029,0.0282,68290.0,68286.0,0.146441]
[1721599246232,0.0252,68290.0,68287.0,0.002794]
[1721599246406,0.0252,68290.0,68285.0,0.149238]
[1721599246607,0.0282,68290.0,68286.0,0.292885]
[1721599246857,0.0282,68290.0,68288.0,0.146438]
[1721599247420,0.0282,68290.0,68289.0,0.146436]
[1721599247622,0.0282,68290.0,68289.0,0.439308]
[1721599247821,0.0252,68290.0,68289.0,0.439308]
[1721599248212,0.0282,68290.0,68289.0,0.439308]
[1721599248661,0.0252,68290.0,68289.0,0.439308]
[1721599249043,0.0252,68290.0,68289.0,0.441308]
[1721599249679,0.0252,68290.0,68289.0,0.73218]
[1721599249996,0.40338,68296.0,68295.0,0.732117]
[1721599250126,0.40338,68296.0,68295.0,1.09845342]
[1721599250341,0.40338,68296.0,68295.0,0.80560642]
[1721599253448,0.40338,68296.0,68283.0,0.1]
[1721599253449,0.1436,68295.0,68283.0,0.1]
[1721599253624,0.14701991,68294.0,68283.0,0.1]
[1721599253840,0.14701991,68294.0,68283.0,0.246449]
[1721599254041,0.70287191,68294.0,68283.0,0.1]
[1721599254242,0.14643,68292.0,68279.0,0.146457]
[1721599254446,0.065,68293.0,68280.0,0.1]
[1721599254683,0.21201991,68293.0,68283.0,0.001]
[1721599254884,0.21201991,68293.0,68283.0,0.101]
[1721599255164,0.21201991,68293.0,68283.0,0.1]
[1721599255558,0.0644,68291.0,68283.0,0.1]
[1721599255986,0.0644,68291.0,68281.0,0.246453]
[1721599256715,0.0644,68291.0,68282.0,0.146451]
[1721599256925,0.0644,68291.0,68283.0,0.1]
[1721599257360,0.0644,68291.0,68283.0,0.246448]
[1721599257781,0.0644,68291.0,68283.0,0.1]
[1721599257989,0.0644,68291.0,68281.0,0.07348942]
[1721599258198,0.0674,68291.0,68282.0,0.12160536]
[1721599258411,0.06710551,68291.0,68288.0,0.07348942]
[1721599258618,0.06710551,68291.0,68289.0,0.146435]
[1721599258619,0.06410551,68291.0,68289.0,0.146435]
[1721599258831,0.40338,68296.0,68295.0,0.146423]
[1721599259248,0.40338,68296.0,68292.0,0.292859]
[1721599259453,0.40338,68296.0,68293.0,0.146426]
[1721599259651,0.40338,68296.0,68295.0,0.146423]
[1721599260088,0.40338,68296.0,68290.0,0.292867]
[1721599260292,0.40338,68296.0,68288.0,0.36636342]
[1721599260514,0.40338,68296.0,68285.0,0.292888]
[1721599260515,0.002,68291.0,68289.0,0.102794]
[1721599260719,0.0789,68290.0,68289.0,0.1]
[1721599261664,0.1414,68290.0,68287.0,0.24644]
[1721599261879,0.1414,68290.0,68288.0,0.146438]
[1721599262084,0.1414,68290.0,68289.0,0.1]
[1721599262378,0.1414,68290.0,68289.0,0.103]
[1721599262601,0.1414,68290.0,68289.0,0.249436]
[1721599262777,0.1414,68290.0,68289.0,0.103]
[1721599262996,0.40338,68296.0,68289.0,0.103]
[1721599262997,0.0623,68295.0,68289.0,0.103]
[1721599263137,0.40338,68296.0,68295.0,0.21991242]
[1721599263338,0.40338,68296.0,68295.0,0.63434964]
[1721599263538,0.40338,68296.0,68295.0,0.92719664]
[1721599263738,0.40338,68296.0,68295.0,1.17421655]
[1721599263964,0.40338,68296.0,68295.0,1.46706355]
[1721599265358,0.40438,68296.0,68295.0,1.53165414]
[1721599265776,0.40438,68296.0,68295.0,1.48106355]
[1721599265913,0.40338,68296.0,68295.0,1.34547333]
[1721599266118,0.40338,68296.0,68295.0,1.77388411]
[1721599266119,0.40438,68296.0,68295.0,1.77388411]
[1721599266318,0.39938,68296.0,68295.0,1.48103711]
[1721599266523,0.39938,68296.0,68295.0,1.48103717]
[1721599268076,0.39838,68296.0,68295.0,1.46703717]
[1721599268327,0.39838,68296.0,68295.0,1.56760787]
[1721599268453,0.39938,68296.0,68295.0,1.58160931]
[1721599269073,0.39938,68296.0,68295.0,1.82388417]
[1721599269292,0.39838,68296.0,68295.0,1.51703717]
[1721599269520,0.39922,68296.0,68295.0,1.56760765]
[1721599269724,0.39922,68296.0,68295.0,1.53103717]
[1721599269725,0.40022,68296.0,68295.0,1.53103717]
[1721599270185,0.40022,68296.0,68295.0,2.03428417]
[1721599270592,0.40022,68296.0,68295.0,2.47905861]
[1721599271219,0.39922,68296.0,68295.0,2.46505861]
[1721599271465,0.2538,68296.0,68295.0,2.86918861]
[1721599271708,0.2538,68296.0,68295.0,2.74205861]
[1721599271962,0.2528,68296.0,68295.0,2.72805861]
[1721599272210,0.2528,68296.0,68295.0,2.43518224]
[1721599272438,0.2528,68296.0,68295.0,2.12218224]
[1721599272709,0.2528,68296.0,68295.0,1.82376538]
[1721599272949,0.2538,68296.0,68295.0,1.83776538]
[1721599273667,0.2548,68296.0,68295.0,1.90176538]
[1721599273927,0.2548,68296.0,68295.0,1.95176538]
[1721599274394,0.2528,68296.0,68295.0,1.94676538]
[1721599274598,0.2548,68296.0,68295.0,1.97476538]
[1721599274811,0.2548,68296.0,68295.0,2.0482548]
[1721599275017,0.2538,68296.0,68295.0,1.89872033]
[1721599275230,0.2538,68296.0,68295.0,2.02026876]
[1721599275436,0.2548,68296.0,68295.0,2.03426876]
[1721599276288,0.2558,68296.0,68295.0,2.04826876]
[1721599276696,0.2538,68296.0,68295.0,2.03426876]
[1721599277108,0.2548,68296.0,68295.0,2.04826876]
[1721599277339,0.2538,68296.0,68295.0,2.03426876]
[1721599277548,0.2548,68296.0,68295.0,2.04826876]
[1721599277871,0.2548,68296.0,68295.0,1.92672033]
[1721599278077,0.2548,68296.0,68295.0,2.04826876]
[1721599278286,0.25374143,68296.0,68295.0,2.03426876]
[1721599278482,0.25474143,68296.0,68295.0,2.04826876]
[1721599279230,0.25374143,68296.0,68295.0,2.03426876]
[1721599279603,0.25474143,68296.0,68295.0,2.04826876]
[1721599279774,0.25474143,68296.0,68295.0,1.99826876]
[1721599280212,0.25474143,68296.0,68295.0,2.33893234]
[1721599280417,0.25474143,68296.0,68295.0,1.47212006]
[1721599280828,0.25474143,68296.0,68295.0,1.42153234]
[1721599281039,0.25474143,68296.0,68295.0,1.42153718]
[1721599281244,0.00084,68302.0,68296.0,0.00425766]
[1721599281451,0.00084,68302.0,68299.0,0.439245]
[1721599281629,0.00084,68302.0,68299.0,1.39347819]
[1721599283643,1.801,68300.0,68299.0,1.39347819]
[1721599283849,1.802,68300.0,68299.0,1.40547819]
[1721599284054,1.801,68300.0,68299.0,1.40547468]
[1721599284259,1.802,68300.0,68299.0,1.41947468]
[1721599284927,1.802,68300.0,68299.0,0.24754977]
[1721599285142,1.802,68300.0,68299.0,0.39396477]
[1721599286172,1.801,68300.0,68299.0,0.23554977]
[1721599286575,1.802,68300.0,68299.0,0.39596477]
[1721599286782,1.801,68300.0,68299.0,0.38196477]
[1721599286988,1.802,68300.0,68299.0,0.39596477]
[1721599287218,1.802,68300.0,68299.0,0.6888165]
[1721599287651,1.801,68300.0,68299.0,0.6748165]
[1721599287845,1.802,68300.0,68299.0,0.6848165]
[1721599288204,1.802,68300.0,68299.0,0.3919865]
[1721599288681,1.802,68300.0,68299.0,0.2455715]
[1721599288855,1.8811,68300.0,68299.0,0.2355715]
[1721599289178,1.8811,68300.0,68299.0,0.2215715]
[1721599289179,1.8801,68300.0,68299.0,0.2215715]
[1721599289588,2.23793191,68300.0,68299.0,0.013]
[1721599289790,0.146419,68297.0,68296.0,0.00425766]
[1721599290007,0.289919,68297.0,68296.0,0.00425766]
[1721599290214,0.793057,68297.0,68296.0,0.00425766]
[1721599290433,0.94001965,68297.0,68296.0,0.00425766]
[1721599291170,0.503219,68297.0,68296.0,0.01325766]
[1721599291388,0.796057,68297.0,68296.0,0.01325766]
[1721599291584,0.501219,68297.0,68296.0,0.01325766]
[1721599291925,0.800057,68297.0,68296.0,0.01425766]
[1721599292337,0.588757,68297.0,68296.0,0.00525766]
[1721599292702,0.589757,68297.0,68296.0,0.01225766]
[1721599292907,0.589757,68297.0,68296.0,0.00525766]
[1721599293329,0.583757,68297.0,68296.0,0.00425766]
[1721599293535,0.1445,68297.0,68296.0,0.00425766]
[1721599293788,0.0664,68297.0,68296.0,0.00425766]
[1721599294012,0.003,68297.0,68296.0,0.44352066]
[1721599294208,0.004,68297.0,68296.0,0.55252066]
[1721599294333,1.8,68300.0,68297.0,0.292838]
[1721599294763,1.8,68300.0,68299.0,0.732075]
[1721599295150,1.8,68300.0,68299.0,0.439245]
[1721599296823,1.801,68300.0,68299.0,0.452245]
[1721599297508,1.802,68300.0,68299.0,0.465245]
[1721599297712,1.802,68300.0,68299.0,0.477245]
[1721599297713,1.803,68300.0,68299.0,0.477245]
[1721599297915,1.803,68300.0,68299.0,0.038]
[1721599299233,1.803,68300.0,68299.0,0.184415]
[1721599299454,1.803,68300.0,68299.0,0.770075]
[1721599299658,1.803,68300.0,68299.0,1.162905]
[1721599299860,1.803,68300.0,68299.0,0.870075]
[1721599300220,1.803,68300.0,68299.0,0.858075]
[1721599300221,1.802,68300.0,68299.0,0.858075]
[1721599300428,1.802,68300.0,68299.0,1.41949516]
[1721599300807,1.803,68300.0,68299.0,1.49529516]
[1721599301327,1.80384,68300.0,68299.0,1.49529516]
[1721599301525,1.80384,68300.0,68299.0,1.57469516]
[1721599302320,1.80384,68300.0,68299.0,1.5746859]
[1721599302529,1.80184,68300.0,68299.0,1.5486859]
[1721599302705,1.80184,68300.0,68299.0,1.54868433]
[1721599302955,1.80184,68300.0,68299.0,1.59868433]
[1721599303147,1.80184,68300.0,68299.0,1.54868433]
[1721599303356,1.80184,68300.0,68299.0,1.94151433]
[1721599304167,1.80084,68300.0,68299.0,1.92851433]
[1721599304620,1.80184,68300.0,68299.0,1.94151433]
[1721599304866,1.80184,68300.0,68299.0,1.99212686]
[1721599305011,1.80184,68300.0,68299.0,1.97912686]
[1721599305012,1.80084,68300.0,68299.0,1.97912686]
[1721599305210,1.80084,68300.0,68299.0,1.97908227]
[1721599305436,1.80084,68300.0,68299.0,1.80695491]
[1721599305681,1.80084,68300.0,68299.0,1.53567516]
[1721599306407,1.80184,68300.0,68299.0,1.56267516]
[1721599307473,1.80184,68300.0,68299.0,1.27345525]
[1721599307817,1.80184,68300.0,68299.0,1.28020825]
[1721599308358,1.80184,68300.0,68299.0,1.28021963]
[1721599309953,1.80184,68300.0,68299.0,1.158658]
[1721599310160,1.80184,68300.0,68299.0,1.28022132]
[1721599311088,1.80184,68300.0,68299.0,0.98739132]
[1721599311301,1.94954,68300.0,68299.0,0.033753]
[1721599311859,1.94954,68300.0,68299.0,0.472998]
[1721599311860,1.86814,68300.0,68299.0,0.472998]
[1721599312209,1.80184,68300.0,68299.0,0.765828]
[1721599312419,1.80184,68300.0,68299.0,1.31425398]
[1721599312420,1.80084,68300.0,68299.0,1.31425398]
[1721599312838,1.80084,68300.0,68299.0,1.47725398]
[1721599312839,1.80184,68300.0,68299.0,1.47725398]
[1721599313037,1.80184,68300.0,68299.0,1.40025398]
[1721599313458,1.80284,68300.0,68299.0,1.41925398]
[1721599313632,1.80084,68300.0,68299.0,1.40623881]
[1721599313885,1.80084,68300.0,68299.0,1.40023881]
[1721599314107,1.80184,68300.0,68299.0,1.42723881]
[1721599314566,1.80184,68300.0,68299.0,1.42723683]
[1721599314986,1.80184,68300.0,68299.0,1.42723745]
[1721599316036,1.80184,68300.0,68299.0,1.77006745]
[1721599316244,1.80184,68300.0,68299.0,1.47723745]
[1721599316863,1.80184,68300.0,68299.0,1.42723745]
[1721599317496,1.80184,68300.0,68299.0,1.47723745]
[1721599317698,1.80184,68300.0,68299.0,1.42723584]
[1721599318236,1.80184,68300.0,68299.0,1.47723584]
[1721599318641,1.80184,68300.0,68299.0,1.42723584]
[1721599318847,1.80184,68300.0,68299.0,1.47723584]
[1721599319050,1.684708,68300.0,68299.0,2.70569584]
[1721599319259,1.27861144,68300.0,68299.0,2.93062683]
[1721599319465,0.72776426,68300.0,68299.0,4.08625595]
[1721599319677,0.72776426,68300.0,68299.0,4.37931143]
[1721599319910,0.64446426,68300.0,68299.0,4.58576457]
[1721599320109,0.48733226,68300.0,68299.0,4.27893457]
[1721599320377,0.00982926,68300.0,68299.0,4.62043457]
[1721599320612,0.00982926,68300.0,68299.0,4.92113504]
[1721599320812,0.00982926,68300.0,68299.0,4.64030504]
[1721599320813,0.01082926,68300.0,68299.0,4.64030504]
[1721599320987,0.3,68301.0,68300.0,1.713512]
[1721599321210,0.182872,68301.0,68300.0,4.23785546]
[1721599321426,0.03026584,68301.0,68300.0,4.27198546]
[1721599321673,0.44930655,68326.0,68311.0,0.05]
[1721599321871,0.44930655,68326.0,68311.0,2.23726393]
[1721599322083,0.00837,68326.0,68311.0,2.88862064]
[1721599322293,0.00837,68326.0,68318.0,1.574618]
[1721599322506,0.00837,68326.0,68318.0,2.84146984]
[1721599322742,0.00837,68326.0,68318.0,2.92175745]
[1721599323165,0.00837,68326.0,68321.0,1.124572]
[1721599323373,0.00837,68326.0,68325.0,1.274459]
[1721599323585,0.00837,68326.0,68325.0,2.96254346]
[1721599323788,0.00837,68326.0,68325.0,3.43011918]
[1721599323998,0.00837,68326.0,68325.0,2.77826146]
[1721599324183,0.00837,68326.0,68325.0,4.16011822]
[1721599324414,0.00837,68326.0,68325.0,4.06900416]
[1721599324963,0.00837,68326.0,68325.0,3.56900416]
[1721599325168,0.00837,68326.0,68325.0,3.53300416]
[1721599325445,0.00837,68326.0,68325.0,3.58300416]
[1721599325643,0.00837,68326.0,68325.0,3.58299833]
[1721599325879,0.00837,68326.0,68325.0,4.08299833]
[1721599326116,0.00837,68326.0,68325.0,2.93793619]
[1721599326644,0.00837,68326.0,68325.0,2.96687737]
[1721599326859,0.00837,68326.0,68325.0,2.23687737]
[1721599327129,0.00837,68326.0,68325.0,3.03687737]
[1721599327357,0.00837,68326.0,68325.0,2.23687737]
[1721599327584,0.00837,68326.0,68325.0,2.02287737]
[1721599327784,0.00837,68326.0,68325.0,2.00887737]
[1721599328071,0.00837,68326.0,68325.0,2.02287737]
[1721599328262,0.00837,68326.0,68325.0,2.80287737]
[1721599328462,0.00837,68326.0,68325.0,1.97287737]
[1721599328727,0.00837,68326.0,68325.0,1.97288519]
[1721599328908,0.00837,68326.0,68325.0,2.03363516]
[1721599329114,0.00837,68326.0,68325.0,1.98659058]
[1721599329364,0.00837,68326.0,68325.0,2.83659058]
[1721599329532,0.00837,68326.0,68325.0,2.89733997]
[1721599329895,0.00837,68326.0,68325.0,2.83659058]
[1721599330614,0.00837,68326.0,68325.0,2.76139058]
[1721599330819,0.00837,68326.0,68325.0,1.50317258]
[1721599331026,0.00837,68326.0,68325.0,1.1015134]
[1721599331445,0.00837,68326.0,68325.0,1.3942314]
[1721599331677,0.00837,68326.0,68325.0,1.39424163]
[1721599331876,0.00837,68326.0,68325.0,1.10152363]
[1721599332102,0.44093655,68343.0,68330.0,0.146346]
[1721599332308,0.146315,68346.0,68331.0,0.102794]
[1721599332545,0.146315,68346.0,68331.0,0.24914]
[1721599332752,0.146316,68345.0,68331.0,0.102794]
[1721599332958,0.292608,68351.0,68331.0,0.102794]
[1721599333234,0.14701991,68351.0,68337.0,0.146332]
[1721599333450,0.43962791,68351.0,68338.0,0.102794]
[1721599333667,0.00084,68346.0,68338.0,0.102794]
[1721599333881,0.00084,68346.0,68345.0,0.146316]
[1721599334122,0.00084,68346.0,68343.0,0.149113]
[1721599334344,0.00084,68346.0,68345.0,0.73158]
[1721599334564,0.00084,68346.0,68345.0,1.16779991]
[1721599334777,0.00084,68346.0,68345.0,1.10008253]
[1721599335904,0.00084,68346.0,68345.0,1.15408253]
[1721599336107,0.00084,68346.0,68345.0,1.44671453]
[1721599336323,0.00084,68346.0,68345.0,1.74934453]
[1721599336729,0.00084,68346.0,68345.0,1.77734453]
[1721599336929,0.00084,68346.0,68345.0,1.72734453]
[1721599337138,0.00084,68346.0,68345.0,1.76334453]
[1721599337343,0.00084,68346.0,68345.0,1.40671253]
[1721599337551,0.00084,68346.0,68345.0,1.45671253]
[1721599337783,0.00084,68346.0,68345.0,1.74933481]
[1721599337977,0.00084,68346.0,68345.0,1.82233481]
[1721599338184,0.00084,68346.0,68345.0,1.82232695]
[1721599338503,0.00084,68346.0,68345.0,1.80832695]
[1721599338933,0.00084,68346.0,68345.0,2.32318943]
[1721599339132,0.00084,68346.0,68345.0,2.37637458]
[1721599339347,0.00084,68346.0,68345.0,2.36237458]
[1721599339833,0.00084,68346.0,68345.0,2.37916858]
[1721599340061,0.00084,68346.0,68345.0,2.37637458]
[1721599340290,0.0241849,68360.0,68359.0,1.074005]
[1721599340516,0.0241849,68360.0,68359.0,1.57895933]
[1721599340734,0.0241849,68360.0,68359.0,1.92152933]
[1721599340990,0.0241849,68360.0,68359.0,1.09989279]
[1721599341227,0.01743715,68360.0,68359.0,1.39246579]
[1721599341463,0.01743715,68360.0,68359.0,2.16701179]
[1721599341696,0.01743715,68360.0,68359.0,2.24001179]
[1721599341915,0.01743715,68360.0,68359.0,2.3007323]
[1721599342150,0.01743715,68360.0,68359.0,2.3147323]
[1721599342382,0.01743715,68360.0,68359.0,2.3007323]
[1721599343291,1e-08,68360.0,68359.0,2.74174251]
[1721599343522,1e-08,68360.0,68359.0,2.29566867]
[1721599343748,1e-08,68360.0,68359.0,2.37038021]
[1721599343991,0.00909312,68369.0,68368.0,1.623869]
[1721599344215,0.00909312,68369.0,68368.0,2.41900977]
[1721599344440,0.00909312,68369.0,68368.0,2.36855308]
[1721599344686,0.00909312,68369.0,68368.0,2.41900977]
[1721599345132,0.00909312,68369.0,68368.0,2.36855308]
[1721599345433,0.00909312,68369.0,68368.0,2.44325308]
[1721599345876,0.00909312,68369.0,68368.0,1.75955308]
[1721599346081,0.00909312,68369.0,68368.0,1.46701908]
[1721599346553,0.00909312,68369.0,68368.0,1.69884917]
[1721599346768,0.00909312,68369.0,68368.0,1.01378117]
[1721599346971,0.00909312,68369.0,68368.0,1.03687417]
[1721599347652,0.00909312,68369.0,68368.0,1.05087417]
[1721599347933,0.14679312,68369.0,68368.0,0.42796026]
[1721599348128,0.58558812,68369.0,68368.0,0.34553]
[1721599348360,0.59074508,68369.0,68368.0,0.34553]
[1721599348588,0.0624,68367.0,68343.0,0.0504602]
[1721599348798,0.0753,68357.0,68347.0,0.26850224]
[1721599349015,0.0753,68357.0,68348.0,0.12148233]
[1721599349238,0.00515696,68356.0,68349.0,0.12148233]
[1721599349452,0.00515696,68356.0,68349.0,0.29332691]
[1721599349668,0.00515696,68356.0,68350.0,0.12148812]
[1721599349881,0.00498088,68356.0,68351.0,0.12148812]
[1721599350104,0.00498088,68356.0,68352.0,0.1214879]
[1721599350327,0.0753,68357.0,68353.0,0.1214879]
[1721599350538,0.0753,68357.0,68354.0,0.1214879]
[1721599350539,0.00513495,68355.0,68354.0,0.1214879]
[1721599350749,0.0753,68357.0,68354.0,0.1214879]
[1721599350973,0.0753,68357.0,68349.0,0.028]
[1721599350974,0.00513495,68355.0,68349.0,0.028]
[1721599351182,0.15212995,68354.0,68350.0,0.12149387]
[1721599351395,0.0663,68353.0,68351.0,0.014]
[1721599351545,0.0663,68353.0,68349.0,0.014]
[1721599351757,0.0663,68353.0,68341.0,0.07628342]
[1721599351957,0.00513495,68352.0,68342.0,0.1214961]
[1721599352160,0.00513495,68352.0,68343.0,0.1242901]
[1721599352384,0.0663,68353.0,68352.0,0.146301]
[1721599352589,0.0663,68353.0,68352.0,0.23449097]
[1721599352794,0.07143495,68353.0,68352.0,0.23449097]
[1721599352993,0.0663,68353.0,68352.0,0.23449097]
[1721599353198,0.0663,68353.0,68352.0,0.22149097]
[1721599353396,0.0663,68353.0,68352.0,0.1]
[1721599353397,0.51023546,68353.0,68352.0,0.1]
[1721599353594,0.0765,68352.0,68343.0,0.014]
[1721599353819,0.222802,68352.0,68344.0,0.12150093]
[1721599353990,0.0049577,68351.0,68343.0,0.014]
[1721599354169,0.0049577,68351.0,68344.0,0.1215022]
[1721599354365,0.0049577,68351.0,68343.0,0.014]
[1721599354845,0.0049577,68351.0,68340.0,0.002794]
[1721599355044,0.0049577,68351.0,68346.0,0.07348942]
[1721599355277,0.0049577,68351.0,68347.0,0.002794]
[1721599356126,0.0059577,68351.0,68347.0,0.002794]
[1721599356530,0.0059577,68351.0,68348.0,0.07348942]
[1721599356677,0.0049577,68351.0,68350.0,0.438916]
[1721599356875,0.0049577,68351.0,68350.0,0.3677928]
[1721599357079,0.000697,68354.0,68350.0,0.2214878]
[1721599357280,0.000697,68354.0,68351.0,0.102794]
[1721599357519,0.000697,68354.0,68351.0,0.002794]
[1721599357520,0.0619,68352.0,68351.0,0.002794]
[1721599357724,0.0619,68352.0,68330.0,0.002794]
[1721599357725,0.1419,68347.0,68330.0,0.002794]
[1721599357918,0.292628,68346.0,68331.0,0.12151644]
[1721599358124,0.292628,68346.0,68332.0,0.12431044]
[1721599358125,0.146323,68342.0,68332.0,0.12431044]
[1721599358325,0.146323,68342.0,68333.0,0.12151644]
[1721599358540,0.40921991,68347.0,68334.0,0.07628342]
[1721599358666,0.00494949,68341.0,68334.0,0.07348942]
[1721599358875,0.146316,68345.0,68335.0,0.002794]
[1721599359208,0.146318,68344.0,68335.0,0.002794]
[1721599359528,0.15125305,68344.0,68335.0,0.002794]
[1721599359979,0.292643,68343.0,68335.0,0.002794]
[1721599360185,0.146323,68342.0,68335.0,0.002794]
[1721599360385,0.433531,68346.0,68335.0,0.009794]
[1721599360386,0.146321,68343.0,68335.0,0.009794]
[1721599360599,0.00493505,68341.0,68335.0,0.007]
[1721599360816,0.146323,68342.0,68334.0,0.07448942]
[1721599361029,0.00493505,68340.0,68335.0,0.008]
[1721599361266,0.001,68344.0,68335.0,0.008]
[1721599361267,0.14732,68344.0,68335.0,0.008]
[1721599361475,0.004,68344.0,68335.0,0.002794]
[1721599361656,0.00493505,68343.0,68335.0,0.002794]
[1721599362495,0.1409,68346.0,68335.0,0.002794]
[1721599362659,0.00484886,68342.0,68335.0,0.002794]
[1721599362836,0.1409,68346.0,68335.0,0.002794]
[1721599363046,0.00485258,68341.0,68335.0,0.002794]
[1721599363245,0.1409,68346.0,68335.0,0.002794]
[1721599363427,0.00485198,68340.0,68335.0,0.011794]
[1721599363635,0.1409,68346.0,68336.0,0.146334]
[1721599363840,0.1409,68346.0,68335.0,0.14913]
[1721599364039,0.585893,68354.0,68341.0,0.07348942]
[1721599364040,0.141897,68354.0,68341.0,0.07348942]
[1721599364333,0.141897,68354.0,68349.0,0.002794]
[1721599364871,0.078297,68354.0,68349.0,0.102794]
[1721599365339,0.082297,68354.0,68349.0,0.102794]
[1721599365560,0.082297,68354.0,68349.0,0.395406]
[1721599365740,0.082297,68354.0,68351.0,0.146302]